bitfinex/quotes_ETHUSD_20260308
["timestamp","ask_amount","ask_price","bid_price","bid_amount"]
[1773013500223,1.77507518,1939.0,1938.7,0.0011]
[1773013500429,0.48575079,1938.9,1938.7,0.0011]
[1773013500586,0.48575079,1938.9,1938.5,0.0011]
[1773013501039,3.14288977,1938.6,1938.0,0.48177563]
[1773013501327,3.14288977,1938.6,1937.2,5.16191217]
[1773013501328,3.14288977,1938.3,1937.6,0.48023677]
[1773013501494,1.87775079,1938.2,1937.6,0.48023677]
[1773013501702,1.77540774,1938.5,1937.7,0.48023677]
[1773013502132,1.87875079,1938.4,1937.7,0.48023677]
[1773013502457,0.48575079,1938.3,1937.5,1.77052032]
[1773013502657,0.48575079,1938.3,1937.5,1.77053272]
[1773013502820,0.48575079,1938.3,1937.5,0.48023677]
[1773013503021,3.12311739,1938.1,1937.5,0.48023677]
[1773013503225,1.28969588,1938.5,1937.6,0.48584153]
[1773013503419,0.46597841,1938.4,1937.6,0.48584153]
[1773013503962,1.393,1938.5,1937.6,0.48584153]
[1773013504671,1.393,1938.5,1937.9,0.48584153]
[1773013504968,0.46597841,1938.8,1937.9,0.48584153]
[1773013505121,0.46597841,1938.7,1937.9,0.48584153]
[1773013505562,1.75556883,1938.6,1938.0,1.28998968]
[1773013506140,1.75556883,1938.6,1937.9,1.77587302]
[1773013506141,0.46597841,1938.5,1937.9,1.77587302]
[1773013506340,0.46597841,1938.5,1937.9,1.29003149]
[1773013507091,0.46670655,1938.2,1937.7,0.0011]
[1773013507238,0.46670655,1938.0,1937.7,0.0011]
[1773013507443,1.29003561,1938.0,1937.5,0.49029439]
[1773013509576,1.29003561,1938.0,1937.5,1.78060635]
[1773013509899,0.46670655,1937.9,1937.5,0.0011]
[1773013510249,0.46670655,1937.9,1937.1,1.77973975]
[1773013510888,0.46670655,1937.9,1937.0,5.16406656]
[1773013510889,0.46670655,1937.6,1937.0,0.00153886]
[1773013511196,1.86070655,1937.6,1937.0,1.78137248]
[1773013511686,3.15101559,1937.6,1937.0,1.78137248]
[1773013512274,0.46670655,1937.5,1937.0,1.29217809]
[1773013512493,1.394,1937.6,1937.0,1.78137248]
[1773013512693,3.15096534,1937.6,1937.0,1.78137248]
[1773013512986,0.46670655,1937.7,1937.1,0.48919439]
[1773013513158,1.394,1937.6,1937.1,0.48919439]
[1773013513561,1.394,1937.6,1937.1,1.77973736]
[1773013514172,1.394,1937.7,1937.2,0.48919439]
[1773013514370,1.86070655,1938.1,1937.2,0.48919439]
[1773013514609,1.394,1938.1,1937.2,0.48919439]
[1773013514805,2.68395445,1938.1,1937.2,0.48919439]
[1773013514957,2.68393356,1938.1,1937.2,0.48919439]
[1773013515298,3.15064011,1938.1,1937.2,0.48919439]
[1773013515681,1.86070655,1938.1,1937.4,0.48919439]
[1773013516008,3.15066613,1938.1,1937.4,0.48919439]
[1773013516318,1.86070655,1938.4,1937.4,0.48919439]
[1773013517462,2.66388384,1938.6,1937.4,0.48919439]
[1773013517463,0.001,1938.3,1937.4,0.48919439]
[1773013517660,0.001,1938.3,1937.6,0.48919439]
[1773013518598,1.75618713,1938.8,1937.6,0.48919439]
[1773013518801,1.75618713,1938.8,1937.5,1.29032258]
[1773013518802,1.75618713,1938.8,1937.7,0.48919439]
[1773013519163,0.46670655,1938.8,1937.9,0.48919439]
[1773013519514,1.75617135,1938.8,1937.9,0.48919439]
[1773013519717,0.46670655,1938.8,1938.0,1.28998968]
[1773013519868,0.46824541,1939.0,1938.1,0.48919439]
[1773013520212,0.00153886,1939.0,1938.2,0.48919439]
[1773013520695,0.00153886,1939.0,1938.4,0.48919439]
[1773013521832,0.00153886,1939.0,1938.6,0.48919439]
[1773013523723,0.00153886,1939.0,1938.7,1.77871829]
[1773013524242,0.00153886,1939.0,1938.5,0.48919439]
[1773013524515,0.46824541,1939.0,1938.3,0.48919439]
[1773013524722,0.46670655,1938.9,1938.1,1.2898726]
[1773013526025,1.75616394,1938.8,1938.0,5.64892596]
[1773013526226,4.0574227,1939.0,1938.1,0.48919439]
[1773013526227,0.00153886,1939.0,1938.1,0.48919439]
[1773013526403,1.29086384,1939.0,1938.2,0.48919439]
[1773013526602,0.00153886,1939.0,1938.2,0.48919439]
[1773013527731,0.46670655,1939.8,1939.0,0.48919439]
[1773013527930,1.75556565,1939.7,1939.1,1.2892579]
[1773013528232,0.46670655,1939.6,1938.8,1.28945739]
[1773013529226,0.46670655,1939.6,1938.8,1.77865178]
[1773013529999,1.289992,1939.5,1938.8,1.77865178]
[1773013531215,1.289992,1939.5,1938.8,1.77863294]
[1773013531621,0.001,1939.5,1938.9,0.48919439]
[1773013532001,0.001,1939.5,1939.0,1.28932439]
[1773013532643,0.001,1939.5,1939.0,1.77851878]
[1773013533438,0.00153886,1940.0,1939.2,0.48521928]
[1773013534348,0.00153886,1940.0,1939.4,0.63470427]
[1773013534544,0.00153886,1940.0,1939.5,0.48521928]
[1773013534727,0.00153886,1940.0,1939.4,0.63470427]
[1773013534923,0.00153886,1940.0,1939.5,0.48521928]
[1773013535921,1.28819498,1940.7,1939.9,0.48521928]
[1773013536120,1.74736478,1940.7,1939.9,0.48521928]
[1773013536449,1.74736478,1940.7,1940.0,1.28865979]
[1773013536651,1.28819498,1940.7,1940.1,0.48521928]
[1773013536841,1.28819498,1940.7,1940.0,1.28865979]
[1773013537036,1.74736478,1940.7,1940.0,1.28865979]
[1773013537438,1.74736717,1940.7,1940.0,1.28865979]
[1773013538250,1.74736717,1940.7,1939.2,0.48521928]
[1773013538251,0.4591698,1940.1,1939.2,0.48521928]
[1773013538424,0.4591698,1940.1,1939.0,1.29085673]
[1773013538425,1.74796245,1939.8,1939.0,1.29085673]
[1773013538619,1.74796245,1939.8,1939.0,0.00153886]
[1773013538851,1.74796245,1939.8,1939.0,1.2908629]
[1773013539053,1.74796245,1939.8,1939.0,0.00153886]
[1773013539354,0.4591698,1939.6,1939.0,0.00153886]
[1773013539525,3.12305364,1939.4,1939.0,0.00153886]
[1773013539718,0.4591698,1939.4,1939.0,0.00153886]
[1773013540457,1.28912494,1939.3,1939.0,0.00153886]
[1773013541158,1.387,1939.5,1939.0,0.00153886]
[1773013541159,5.15601728,1939.5,1939.0,0.00153886]
[1773013541335,1.28909505,1939.4,1939.0,0.00153886]
[1773013542172,1.28909505,1939.4,1939.1,0.0011]
[1773013542380,1.29009505,1939.4,1939.1,0.0011]
[1773013542555,0.4601698,1939.4,1939.0,0.00153886]
[1773013542760,0.4591698,1939.3,1939.0,0.00263886]
[1773013543058,0.4591698,1939.2,1938.8,0.0011]
[1773013543854,0.001,1939.4,1938.8,0.0011]
[1773013544044,1.388,1939.4,1938.8,1.29052384]
[1773013545125,0.001,1939.4,1938.8,1.29052384]
[1773013547734,0.4601698,1939.4,1938.8,1.29052384]
[1773013547940,0.4591698,1939.1,1938.2,1.28985656]
[1773013548256,0.4591698,1939.1,1938.2,1.77507584]
[1773013548949,0.4591698,1938.9,1938.2,1.77507584]
[1773013549258,1.28945739,1938.8,1938.2,1.28985656]
[1773013549942,1.74862719,1938.8,1938.0,1.29150259]
[1773013550144,0.4591698,1938.5,1938.0,0.00153886]
[1773013551355,1.28972348,1938.4,1938.0,0.00153886]
[1773013553174,1.387,1938.6,1938.0,0.00153886]
[1773013553476,2.67662749,1938.6,1938.0,0.00153886]
[1773013554479,2.67662749,1938.6,1938.1,0.0011]
[1773013554785,3.13577355,1938.6,1938.1,0.0011]
[1773013554986,0.4591698,1938.5,1938.1,0.0011]
[1773013555490,1.28972348,1938.4,1938.1,0.0011]
[1773013555668,1.74889328,1938.4,1938.1,0.0011]
[1773013556691,0.4591698,1938.3,1937.8,0.0011]
[1773013556989,0.4591698,1938.0,1937.5,0.0011]
[1773013557160,2.66388384,1938.1,1937.5,1.29141722]
[1773013557360,2.67702996,1938.0,1937.5,0.0011]
[1773013557584,3.13602764,1938.2,1937.5,0.0011]
[1773013557784,2.67685784,1938.2,1937.5,0.0011]
[1773013558185,1.28981554,1938.3,1937.5,0.0011]
[1773013558569,1.387,1938.2,1937.5,0.48631928]
[1773013558770,1.387,1938.2,1937.5,0.0011]
[1773013558982,2.66388384,1938.0,1937.5,0.0011]
[1773013559991,3.95392683,1938.0,1937.5,0.0011]
[1773013560594,4.41309663,1938.0,1937.5,0.0011]
[1773013560761,3.12305364,1937.7,1937.2,0.0011]
[1773013560966,0.4591698,1937.6,1937.2,0.0011]
[1773013561896,2.66388384,1937.4,1936.5,0.48521928]
[1773013562093,2.66388384,1937.4,1936.4,0.9166888]
[1773013562094,2.66388384,1936.9,1936.4,0.9166888]
[1773013562296,1.388,1936.8,1936.4,2.20773957]
[1773013562504,3.12305364,1936.9,1936.4,2.20773957]
[1773013562830,2.66388384,1937.1,1936.4,2.20773957]
[1773013562978,0.46733223,1937.0,1936.4,0.9166888]
[1773013563170,2.66388384,1936.8,1936.4,0.9166888]
[1773013563500,0.46733223,1937.0,1936.4,2.20774267]
[1773013563696,1.388,1937.2,1936.4,2.20774267]
[1773013563905,0.46733223,1937.6,1936.5,0.48439255]
[1773013564084,1.388,1937.5,1936.5,0.48439255]
[1773013564280,3.13121607,1937.4,1936.5,0.48439255]
[1773013564577,2.67826135,1937.6,1936.5,0.48439255]
[1773013564982,1.388,1937.6,1936.5,0.48439255]
[1773013565386,2.67826164,1937.6,1936.5,0.48439255]
[1773013565786,3.14559387,1937.6,1936.6,1.29092223]
[1773013566323,2.66388384,1937.1,1936.4,0.9166888]
[1773013566610,3.13121607,1936.8,1936.4,0.7166888]
[1773013566904,2.66388384,1936.5,1936.0,1.2928543]
[1773013567292,0.46733223,1936.7,1936.0,1.2928543]
[1773013567494,1.388,1936.9,1936.0,1.77844029]
[1773013567693,1.388,1936.9,1936.5,0.0011]
[1773013567894,2.67874761,1936.9,1936.5,0.0011]
[1773013568108,5.34588842,1936.9,1936.5,0.0011]
[1773013568276,5.34588842,1936.9,1936.0,1.77844029]
[1773013568277,2.66714081,1936.6,1936.0,1.2928543]
[1773013568475,0.45846317,1936.8,1936.2,0.0011]
[1773013568680,2.66714081,1936.9,1936.2,0.0011]
[1773013568908,5.80439291,1936.8,1936.0,1.2928543]
[1773013569106,4.51360398,1936.8,1936.0,1.2928543]
[1773013569402,2.66714081,1936.8,1936.0,1.2928543]
[1773013569609,0.45846317,1936.6,1936.0,0.00153886]
[1773013569820,1.388,1936.7,1935.7,0.1570979]
[1773013569821,0.45846317,1936.4,1935.8,1.29141908]
[1773013569997,1.29096844,1936.6,1935.8,1.29141908]
[1773013570318,1.388,1936.5,1935.8,1.29141908]
[1773013571730,2.66714081,1936.3,1935.7,1.44857344]
[1773013571899,1.388,1936.5,1935.7,1.44857344]
[1773013572100,1.29105556,1936.4,1935.7,1.44857344]
[1773013573018,2.68005556,1936.4,1935.7,1.44857344]
[1773013573634,1.389,1936.5,1935.7,1.44857344]
[1773013573817,1.84746317,1936.5,1935.7,1.44857344]
[1773013574137,1.74958541,1936.3,1935.7,1.44857344]
[1773013574342,1.389,1936.4,1935.7,1.44857344]
[1773013575426,1.74943454,1936.6,1935.7,1.44857344]
[1773013575627,0.45846317,1936.6,1935.7,1.44857344]
[1773013575930,2.66714081,1936.4,1935.7,1.44857344]
[1773013576129,1.29112224,1936.3,1935.7,1.44857344]
[1773013576501,4.41670082,1936.4,1935.7,1.44857344]
[1773013577095,1.29104184,1936.5,1935.7,1.93415943]
[1773013577770,1.29094854,1936.6,1935.7,1.93415943]
[1773013578062,1.29094854,1936.6,1935.7,1.44857344]
[1773013578281,1.75071603,1937.0,1936.0,0.48558599]
[1773013578427,1.39,1936.9,1936.0,0.48558599]
[1773013578630,1.39,1936.9,1935.9,1.29138901]
[1773013578631,0.45846317,1936.8,1935.9,1.29138901]
[1773013579474,0.00153886,1938.0,1936.3,0.48558599]
[1773013579627,1.29133143,1937.5,1936.5,0.48558599]
[1773013580058,0.001,1937.5,1936.5,0.48558599]
[1773013580248,0.001,1937.5,1936.7,0.48558599]
[1773013580444,0.001,1936.9,1936.7,0.48558599]
[1773013580645,0.001,1937.5,1936.7,0.48558599]
[1773013582477,0.001,1937.5,1936.9,0.48558599]
[1773013584558,0.001,1937.5,1936.9,1.77625817]
[1773013585648,0.001,1937.5,1937.0,0.48558599]
[1773013587172,0.001,1937.5,1937.0,1.29065052]
[1773013587347,0.001,1937.5,1937.0,1.77623651]
[1773013590581,0.001,1937.5,1937.1,0.48558599]
[1773013591444,7.82698601,1938.1,1937.1,0.48558599]
[1773013591445,0.00153886,1938.0,1937.1,0.48558599]
[1773013591650,1.29153466,1938.0,1937.1,0.48558599]
[1773013591966,1.6437082,1938.0,1937.1,0.48558599]
[1773013592313,1.29153466,1938.0,1937.1,0.48558599]
[1773013592777,0.001,1937.4,1937.3,0.48558599]
[1773013592956,0.00153886,1938.0,1937.3,0.45870351]
[1773013593985,5.15912144,1938.4,1937.3,0.45870351]
[1773013593986,1.29004068,1937.9,1937.3,0.45870351]
[1773013594146,1.394,1938.2,1937.3,0.45870351]
[1773013594577,2.68385882,1938.2,1937.4,1.74909269]
[1773013594777,2.68385882,1938.2,1937.5,0.45870351]
[1773013595262,1.394,1938.2,1937.5,0.45870351]
[1773013595459,3.03567802,1938.8,1937.5,0.45870351]
[1773013595986,5.15884239,1939.0,1938.2,0.45870351]
[1773013595987,0.00153886,1939.0,1938.2,0.45870351]
[1773013596709,0.00153886,1939.0,1938.4,0.45870351]
[1773013597699,0.001,1939.3,1938.3,1.28979002]
[1773013597871,0.001,1939.3,1938.4,0.45870351]
[1773013598994,0.001,1939.3,1938.6,0.45870351]
[1773013601098,0.001,1939.3,1938.7,1.74822741]
[1773013602970,0.001,1939.3,1938.8,0.45870351]
[1773013604369,0.001,1939.2,1938.8,0.45870351]
[1773013605170,0.001,1939.2,1938.9,1.28939089]
[1773013605602,1.388,1939.4,1938.9,1.28939089]
[1773013605823,1.388,1939.8,1939.0,0.45870351]
[1773013606025,1.388,1939.8,1938.8,1.28940891]
[1773013606026,0.3537124,1939.7,1938.8,1.28940891]
[1773013607236,0.3537124,1939.7,1938.4,0.45870351]
[1773013607237,0.3537124,1939.4,1938.4,0.45870351]
[1773013607407,2.66714081,1939.2,1938.4,0.45870351]
[1773013607726,1.388,1939.1,1938.4,0.45870351]
[1773013610010,2.67731636,1939.1,1938.4,1.748426]
[1773013610211,2.67731636,1939.1,1938.4,1.7484197]
[1773013610591,1.388,1939.1,1938.5,0.45870351]
[1773013611203,1.64275143,1939.5,1938.5,0.45870351]
[1773013611204,1.386,1939.4,1938.5,0.45870351]
[1773013611800,1.386,1939.4,1938.7,0.45870351]
[1773013612007,1.386,1939.4,1938.9,0.45870351]
[1773013612330,1.386,1939.7,1938.9,0.45870351]
[1773013612912,2.66714081,1939.5,1938.9,0.45870351]
[1773013613208,1.7397124,1939.7,1938.9,0.45870351]
[1773013613411,1.7397124,1939.7,1938.8,1.28945739]
[1773013613586,0.3537124,1939.7,1938.9,0.45870351]
[1773013613787,1.387,1939.6,1938.9,0.45870351]
[1773013614187,2.6759268,1939.6,1939.0,1.28932439]
[1773013614689,3.95597647,1939.8,1939.0,1.7480279]
[1773013615011,1.6771706,1940.0,1939.1,0.45870351]
[1773013615212,0.00153886,1940.0,1939.1,0.45870351]
[1773013615415,1.29020312,1940.0,1939.1,0.45870351]
[1773013615585,1.67546191,1940.0,1939.1,0.45870351]
[1773013615910,1.67546191,1940.0,1938.9,1.28933778]
[1773013615911,2.66714081,1939.5,1938.9,1.28933778]
[1773013616116,0.38525879,1939.7,1938.9,1.28933778]
[1773013616414,1.28892555,1939.6,1938.9,1.28933778]
[1773013616786,1.28992555,1939.6,1938.9,1.28933778]
[1773013617392,1.387,1939.5,1938.9,1.28933778]
[1773013618109,1.387,1939.5,1938.9,1.74804129]
[1773013618697,2.67605664,1939.5,1938.9,1.74804129]
[1773013620198,3.05471075,1939.5,1938.8,1.28940855]
[1773013620598,3.05471075,1939.5,1938.7,1.74817533]
[1773013620828,3.04415413,1939.3,1938.6,1.28954266]
[1773013621523,0.37701332,1939.3,1938.6,1.74824617]
[1773013621724,1.387,1939.5,1938.7,0.45870351]
[1773013622022,2.6759943,1939.5,1938.7,0.45870351]
[1773013622409,1.387,1939.5,1938.7,0.45870351]
[1773013622608,0.001,1939.6,1938.9,0.45870351]
[1773013622808,2.55296152,1940.8,1938.9,0.45870351]
[1773013622809,0.001,1940.8,1939.3,0.50809716]
[1773013623004,6.5387933,1940.7,1939.6,0.50809716]
[1773013623329,2.67419498,1940.7,1939.6,0.50809716]
[1773013623715,0.001,1940.8,1939.8,0.50809716]
[1773013623918,0.001,1940.8,1940.0,0.50809716]
[1773013624630,0.001,1940.8,1940.3,1.7965577]
[1773013625203,0.001,1940.8,1940.4,0.50809716]
[1773013626425,0.001,1940.8,1940.3,1.28846054]
[1773013626799,0.001,1940.8,1940.3,0.45998663]
[1773013628336,0.001,1940.8,1940.2,1.28852695]
[1773013628638,0.001,1940.8,1940.4,9.79727674]
[1773013629404,0.001,1940.7,1940.4,9.79727674]
[1773013630805,1.28826136,1940.6,1939.9,1.74866319]
[1773013631039,1.28826136,1940.6,1940.1,1.79727674]
[1773013631711,3.94484491,1940.6,1939.7,1.28881947]
[1773013631906,3.94484491,1940.6,1939.7,9.79727674]
[1773013631907,2.65658355,1940.3,1939.7,9.79727674]
[1773013632112,1.382,1940.2,1939.4,1.28903134]
[1773013633009,1.28859337,1940.1,1939.4,1.28903134]
[1773013633337,1.382,1940.2,1939.4,1.74901797]
[1773013633531,2.67052954,1940.2,1939.4,1.74901797]
[1773013634677,2.65658355,1940.0,1939.1,1.74923422]
[1773013634941,1.76405559,1940.5,1939.4,0.45998663]
[1773013635514,0.47572784,1940.4,1939.4,0.45998663]
[1773013635715,3.13231139,1940.4,1939.4,0.45998663]
[1773013635952,0.47572784,1940.3,1939.4,0.45998663]
[1773013636333,1.28832775,1940.5,1939.4,0.45998663]
[1773013636520,2.67332775,1940.5,1939.4,0.45998663]
[1773013636924,2.67332775,1940.5,1939.4,5.61595466]
[1773013636925,3.14905559,1940.5,1939.4,5.61595466]
[1773013637147,3.13231139,1940.4,1939.5,1.288992]
[1773013637548,0.47572784,1940.4,1939.6,0.45998663]
[1773013637748,1.386,1940.3,1939.6,0.45998663]
[1773013638248,1.386,1940.3,1939.5,1.288992]
[1773013638949,1.28852695,1940.2,1939.5,1.74897863]
[1773013640834,2.65658355,1939.6,1939.1,0.45998663]
[1773013641050,1.288992,1939.5,1939.1,1.28924257]
[1773013641266,1.288992,1939.5,1939.0,0.00153886]
[1773013641763,2.65658355,1939.2,1938.8,0.0011]
[1773013641932,2.65658355,1939.2,1938.8,1.29054826]
[1773013642128,4.42130339,1939.5,1938.8,1.29054826]
[1773013642558,5.15596803,1939.6,1939.3,0.0011]
[1773013642559,1.2889782,1939.6,1939.3,0.0011]
[1773013642753,1.387,1939.7,1939.3,0.0011]
[1773013644663,1.387,1939.7,1938.8,1.75049828]
[1773013644664,2.65658355,1939.5,1938.8,1.75049828]
[1773013644963,2.67588166,1939.7,1938.9,0.45998663]
[1773013645277,2.67585955,1939.7,1939.0,0.45998663]
[1773013645766,2.67585955,1939.7,1938.9,1.28933845]
[1773013645940,2.65658355,1939.4,1938.8,0.0011]
[1773013646337,2.65658355,1939.1,1938.8,0.0011]
[1773013646553,1.39,1939.0,1938.8,0.0011]
[1773013647237,2.67937397,1939.0,1938.8,0.0011]
[1773013648440,1.39,1939.0,1938.8,0.0011]
[1773013649059,2.67933625,1939.0,1938.8,0.0011]
[1773013654648,2.67933625,1939.0,1938.9,0.0011]
[1773013654871,2.67933625,1939.0,1938.8,0.0011]
[1773013656252,0.68268511,1938.9,1938.4,0.0011]
[1773013656447,2.65658355,1938.8,1938.4,0.0011]
[1773013656969,2.67933625,1939.0,1938.4,0.0011]
[1773013657341,2.65658355,1938.9,1938.4,0.0011]
[1773013658052,1.28945739,1938.8,1938.4,0.0011]
[1773013658450,2.67936736,1939.0,1938.4,0.74546693]
[1773013659545,3.35062578,1939.0,1938.4,0.0011]
[1773013659740,2.65658355,1938.8,1938.4,0.0011]
[1773013660067,0.67125842,1938.9,1937.2,0.0011]
[1773013660068,0.74546693,1938.0,1937.8,0.74436693]
[1773013661060,0.74546693,1938.0,1937.5,0.74436693]
[1773013661260,0.74546693,1938.0,1937.6,0.74436693]
[1773013661261,0.44061603,1938.0,1937.6,0.74436693]
[1773013661652,0.33049305,1938.1,1937.5,0.89385192]
[1773013661974,0.33049305,1938.1,1937.6,2.03462291]
[1773013662155,0.33049305,1938.1,1937.7,0.74436693]
[1773013662474,1.62041879,1938.1,1937.7,0.74436693]
[1773013662650,0.33049305,1938.1,1937.7,0.74436693]
[1773013663047,2.65658355,1938.5,1937.7,0.74436693]
[1773013663272,1.397,1938.6,1937.7,0.74436693]
[1773013663569,2.68659056,1938.6,1937.7,0.74436693]
[1773013663943,2.68659056,1938.6,1937.9,0.74436693]
[1773013665377,2.68661958,1938.6,1937.9,0.74436693]
[1773013665981,5.34320313,1938.6,1937.9,0.74436693]
[1773013666155,5.34320313,1938.6,1937.6,2.03462291]
[1773013666360,0.75403765,1938.5,1937.8,0.0011]
[1773013667971,5.34320313,1938.6,1937.8,0.0011]
[1773013668172,2.68857687,1938.7,1937.8,0.74546693]
[1773013668355,3.44261452,1938.7,1937.8,0.74546693]
[1773013668767,2.68857687,1938.7,1937.8,0.74546693]
[1773013668965,1.399,1938.7,1937.8,0.74546693]
[1773013669175,0.001,1938.9,1938.2,0.74436693]
[1773013669490,1.4,1938.9,1938.2,0.74436693]
[1773013670070,2.68939533,1938.9,1938.4,0.74436693]
[1773013670388,2.68939533,1938.9,1938.1,0.74436693]
[1773013670389,3.44343298,1938.9,1938.1,0.74436693]
[1773013670575,2.65658355,1938.7,1938.1,2.03428493]
[1773013670888,0.001,1938.9,1938.2,0.74436693]
[1773013671089,1.4,1938.8,1938.2,0.74436693]
[1773013671603,1.4,1938.8,1938.1,1.289918]
[1773013672167,1.2895239,1938.7,1938.0,2.03435661]
[1773013672762,1.2895239,1938.7,1938.0,0.74436693]
[1773013672968,2.65658355,1938.6,1937.9,1.29000597]
[1773013673378,1.2895239,1938.7,1938.0,0.74436693]
[1773013674002,2.04356155,1938.7,1937.9,1.29000597]
[1773013674163,1.2895239,1938.7,1938.0,0.74436693]
[1773013674570,1.2895239,1938.7,1937.8,1.29118423]
[1773013674571,2.65658355,1938.6,1937.8,1.29118423]
[1773013674880,2.65658355,1938.6,1937.8,2.03555116]
[1773013675476,0.75403765,1938.5,1937.8,2.03555116]
[1773013675801,0.75403765,1938.5,1937.8,2.03558338]
[1773013675985,0.75403765,1938.6,1937.8,1.29121645]
[1773013676173,1.28965695,1938.5,1937.8,0.0011]
[1773013676575,3.9462405,1938.5,1937.8,0.0011]
[1773013677998,4.05658355,1938.8,1937.8,0.74546693]
[1773013678204,4.05658355,1938.8,1937.9,1.29005624]
[1773013678205,2.68950239,1938.8,1937.9,1.29005624]
[1773013678425,2.68950239,1938.8,1938.0,0.74436693]
[1773013679481,0.001,1938.5,1938.0,0.74436693]
[1773013680202,0.001,1938.5,1937.9,0.0011]
[1773013680374,0.001,1938.5,1937.9,0.74546693]
[1773013681588,0.001,1938.5,1937.9,0.0011]
[1773013682517,0.001,1938.5,1937.9,0.74546693]
[1773013684503,0.001,1938.5,1938.0,1.28998968]
[1773013684835,2.65658355,1938.4,1937.9,0.0011]
[1773013685127,0.70299836,1938.3,1937.8,0.0011]
[1773013685482,0.001,1938.5,1937.8,1.2912085]
[1773013685720,0.70399836,1938.5,1937.8,1.2912085]
[1773013686108,0.70399836,1938.5,1937.8,0.0011]
[1773013686293,0.70399836,1938.5,1937.8,1.29117148]
[1773013686489,1.28972348,1938.4,1937.8,0.0011]
[1773013686689,2.00734384,1938.4,1937.8,0.0011]
[1773013688018,2.65658355,1938.2,1937.8,0.0011]
[1773013688317,1.406,1938.2,1937.8,0.0011]
[1773013688721,2.69591007,1938.2,1937.8,0.0011]
[1773013689231,2.6958566,1938.2,1937.8,0.0011]
[1773013691201,2.6958566,1938.2,1937.9,0.0011]
[1773013691614,2.6958566,1938.2,1937.7,0.0011]
[1773013694720,3.41347696,1938.2,1937.7,0.0011]
[1773013695901,0.71762036,1938.0,1937.5,0.0011]
[1773013696105,0.71762036,1938.0,1936.9,0.63021389]
[1773013696106,3.3813562,1937.8,1937.0,12.01160673]
[1773013696312,1.406,1937.7,1937.0,12.01160673]
[1773013696517,1.406,1937.7,1937.1,1.29058092]
[1773013697603,1.406,1937.7,1937.1,1.29054417]
[1773013698129,1.29025598,1937.6,1937.1,1.29054417]
[1773013698334,1.29025598,1937.6,1937.0,12.01160884]
[1773013701018,0.71762036,1937.9,1937.3,0.71836293]
[1773013701260,1.406,1937.8,1937.3,0.71836293]
[1773013701413,2.66373584,1937.7,1937.0,12.01160884]
[1773013701614,3.3813562,1937.7,1937.0,12.01160884]
[1773013702644,3.3813562,1937.7,1937.1,0.71836293]
[1773013702942,1.29025598,1937.6,1937.3,0.0011]
[1773013703146,1.29023834,1937.7,1937.3,0.0011]
[1773013703326,0.001,1937.7,1937.3,0.71946293]
[1773013703746,1.406,1937.8,1937.4,0.71836293]
[1773013704462,1.406,1937.8,1937.3,0.0011]
[1773013704463,2.69613081,1937.8,1937.3,0.0011]
[1773013704632,2.69613081,1937.8,1937.2,0.0011]
[1773013704633,6.07748701,1937.8,1937.2,0.0011]
[1773013704819,6.07748701,1937.8,1937.0,15.88350813]
[1773013704820,0.71762036,1937.7,1937.0,12.01160029]
[1773013705349,0.71762036,1937.7,1937.0,12.01165561]
[1773013705350,1.29025598,1937.6,1937.0,12.01165561]
[1773013705846,9.23075978,1937.8,1937.1,0.71836293]
[1773013705847,4.06973584,1937.8,1937.1,0.71836293]
[1773013706012,0.71762036,1937.6,1937.0,10.00263886]
[1773013706215,0.71762036,1937.6,1937.0,11.29328316]
[1773013706447,0.71762036,1937.6,1937.0,10.00263886]
[1773013706648,3.3813562,1937.4,1936.7,0.71836293]
[1773013706950,2.12362036,1937.3,1936.6,2.00927708]
[1773013707156,1.2905224,1937.2,1936.6,2.00927708]
[1773013707525,3.3813562,1937.1,1936.3,2.00948517]
[1773013707951,3.3813562,1937.1,1936.4,0.71836293]
[1773013708255,0.71762036,1937.1,1936.4,0.71836293]
[1773013709246,1.29055611,1937.2,1936.6,0.71836293]
[1773013709454,2.12462036,1937.2,1936.5,2.00935182]
[1773013709755,1.407,1937.2,1936.6,0.71836293]
[1773013710774,1.407,1937.2,1936.4,0.71836293]
[1773013710775,0.71762036,1937.0,1936.4,0.71836293]
[1773013711071,0.71762036,1937.0,1936.2,5.16460926]
[1773013711277,1.29072228,1936.9,1936.2,5.88297219]
[1773013711565,1.29072228,1936.9,1936.3,0.71836293]
[1773013712672,2.00834264,1936.9,1936.2,5.16460926]
[1773013713545,2.00834264,1936.9,1936.2,5.94155099]
[1773013713843,2.00834264,1936.9,1936.2,2.06813065]
[1773013714259,3.46952933,1936.8,1936.1,1.29121356]
[1773013714442,1.408,1936.7,1936.1,1.29121356]
[1773013714853,1.408,1936.7,1936.1,2.06815529]
[1773013715150,1.408,1936.7,1936.3,0.0011]
[1773013715477,2.69890974,1936.7,1936.3,0.0011]
[1773013716972,2.69890974,1936.7,1936.0,0.00263886]
[1773013716973,0.80579349,1936.4,1936.0,0.00263886]
[1773013717174,0.80579349,1936.4,1935.6,1.29155016]
[1773013717477,0.80579349,1936.4,1935.7,1.44861391]
[1773013717478,1.29112224,1936.3,1935.7,1.44861391]
[1773013717773,1.409,1936.2,1935.7,1.44861391]
[1773013718276,1.409,1936.2,1935.7,0.1570979]
[1773013718447,1.409,1936.2,1935.7,1.44861147]
[1773013718646,1.409,1936.2,1935.7,1.4486107]
[1773013718878,1.409,1936.2,1935.7,2.22555243]
[1773013719380,2.70020806,1936.2,1935.7,2.22554203]
[1773013719542,1.409,1936.2,1935.7,2.22554203]
[1773013719744,1.409,1936.2,1935.8,0.77694173]
[1773013720000,2.70019502,1936.2,1935.7,0.93403963]
[1773013720175,2.70019502,1936.2,1935.7,2.22554616]
[1773013720769,2.70019502,1936.2,1935.7,1.44860443]
[1773013720972,2.70019502,1936.2,1935.7,0.1570979]
[1773013721178,3.50598851,1936.2,1935.7,0.1570979]
[1773013721375,1.29132231,1936.0,1935.7,0.1570979]
[1773013721580,4.76085164,1936.0,1935.3,2.06872064]
[1773013721880,4.76085164,1936.0,1935.3,2.06872499]
[1773013722450,4.76085164,1936.0,1935.3,2.06872858]
[1773013723775,4.76085164,1936.0,1935.3,2.06871902]
[1773013724401,2.09712734,1936.0,1935.4,0.77694173]
[1773013725682,1.41,1936.1,1935.6,0.77694173]
[1773013726849,1.41,1936.1,1935.4,2.06860922]
[1773013727055,2.21579349,1936.1,1935.4,0.77694173]
[1773013727381,0.80579349,1936.0,1935.2,2.06875091]
[1773013727680,1.29138901,1935.9,1935.3,0.77694173]
[1773013728265,1.29138901,1935.9,1935.4,0.0011]
[1773013728480,3.46952933,1936.2,1935.4,0.77804173]
[1773013728682,1.41,1936.1,1935.4,0.77804173]
[1773013729559,1.41,1936.1,1935.6,0.77694173]